bitfinex/quotes_ETHUSD_20250426
["timestamp","ask_amount","ask_price","bid_price","bid_amount"]
[1745638635944,6.34179106,1796.7,1796.2,0.20141661]
[1745638635945,11.90768881,1796.7,1796.2,5.76869151]
[1745638636278,5.56626509,1796.6,1796.2,5.76869151]
[1745638636776,4.826,1796.7,1796.5,5.56616974]
[1745638637145,4.826,1796.7,1796.6,0.18586645]
[1745638637340,4.826,1796.7,1796.6,5.75193569]
[1745638637556,4.826,1796.7,1796.6,6.32712926]
[1745638637968,4.826,1796.7,1796.6,0.76106002]
[1745638638408,4.826,1796.7,1796.6,0.18586645]
[1745638638743,5.5662369,1796.6,1796.2,6.98104076]
[1745638638944,10.82520965,1796.7,1796.6,0.18584286]
[1745638639353,10.82520965,1796.7,1796.2,6.98091939]
[1745638639676,10.82520965,1796.7,1796.2,7.60897065]
[1745638639677,5.56608388,1796.6,1796.2,7.60897065]
[1745638640179,5.56608388,1796.6,1796.2,2.04173768]
[1745638640543,5.56608388,1796.6,1796.2,7.60885896]
[1745638641178,10.82529137,1796.7,1796.2,7.60884676]
[1745638641347,10.82529137,1796.7,1796.3,5.56699141]
[1745638641544,12.46438144,1796.7,1796.2,7.60888186]
[1745638641765,5.56657404,1796.5,1796.1,0.8101]
[1745638641968,5.56657404,1796.5,1796.1,6.37767094]
[1745638642777,5.56717657,1796.3,1795.9,1.43704722]
[1745638643077,5.56761872,1796.1,1796.0,0.18383358]
[1745638643281,4.824,1796.2,1796.0,0.18383358]
[1745638644196,4.824,1796.2,1796.0,6.32693703]
[1745638644357,4.824,1796.2,1796.0,7.13703703]
[1745638644672,4.824,1796.2,1796.0,1.5691172]
[1745638646583,10.39136546,1796.2,1796.0,0.18383358]
[1745638646952,10.39136546,1796.2,1795.8,6.3785262]
[1745638647152,10.39136546,1796.2,1796.1,0.1837713]
[1745638647682,10.39136546,1796.2,1795.8,6.3785262]
[1745638647881,10.39136546,1796.2,1795.9,0.18389587]
[1745638648571,10.82466546,1796.2,1795.9,0.18389587]
[1745638649363,5.2573,1796.2,1795.9,5.75208397]
[1745638649563,4.824,1796.2,1795.9,5.75208397]
[1745638650456,4.824,1796.2,1796.0,5.56792797]
[1745638650686,4.824,1796.2,1796.1,0.1837713]
[1745638650983,4.824,1796.2,1795.9,5.56804252]
[1745638651189,4.824,1796.2,1796.1,0.1837713]
[1745638651690,4.824,1796.2,1796.1,0.8244]
[1745638651887,4.825,1796.5,1796.2,5.56719582]
[1745638652186,4.825,1796.5,1796.3,0.18364676]
[1745638654989,10.39140165,1796.5,1796.3,0.18364676]
[1745638655158,12.03048163,1796.5,1796.3,0.18364676]
[1745638655360,12.03048163,1796.5,1796.1,7.018843]
[1745638655560,10.39140165,1796.5,1796.4,0.18485533]
[1745638655760,10.39140165,1796.5,1796.1,7.018843]
[1745638655960,10.39140165,1796.5,1796.4,0.18485533]
[1745638656286,5.56704234,1796.3,1795.9,7.01947144]
[1745638656490,5.56685707,1796.4,1795.9,12.58750899]
[1745638656783,5.56685707,1796.4,1795.9,13.84625989]
[1745638656988,5.56685707,1796.4,1796.0,5.56789896]
[1745638658105,5.56685707,1796.4,1796.1,0.18505393]
[1745638659795,0.4333,1796.2,1795.9,0.8244]
[1745638660093,0.4333,1796.3,1795.9,11.96053497]
[1745638660394,0.4333,1796.3,1796.0,5.56792727]
[1745638660995,6.00032023,1796.3,1795.9,7.58854361]
[1745638662096,6.00048767,1796.3,1795.9,2.0204535]
[1745638662981,6.00048767,1796.3,1795.9,0.8244]
[1745638663560,6.00052136,1796.3,1795.9,0.8244]
[1745638663794,6.0001453,1796.4,1796.0,5.5679107]
[1745638663989,5.56700518,1796.3,1795.9,7.01958173]
[1745638665003,5.5673177,1796.2,1795.9,0.8244]
[1745638665599,5.56762929,1796.1,1795.9,0.8244]
[1745638665895,6.68087889,1796.2,1795.7,1.40804722]
[1745638666067,6.68087889,1796.2,1795.6,0.7811]
[1745638666068,5.56837047,1795.9,1795.6,0.7811]
[1745638666260,5.56837047,1795.9,1795.5,5.56937504]
[1745638666455,5.56837047,1795.9,1795.5,6.76138734]
[1745638666659,5.2583,1796.1,1795.4,0.7811]
[1745638666864,5.56908378,1795.7,1795.4,0.7811]
[1745638667697,6.00238378,1795.7,1795.2,6.98167458]
[1745638667994,6.00238378,1795.7,1795.2,0.7845]
[1745638667995,10.39419543,1795.6,1795.2,0.7845]
[1745638668297,4.825,1795.6,1795.2,0.7845]
[1745638668464,6.05214763,1795.5,1795.1,6.40505148]
[1745638669201,10.39438114,1795.6,1795.2,5.57036919]
[1745638669420,4.825,1795.6,1795.3,5.56999637]
[1745638672387,4.825,1795.6,1795.4,6.3365178]
[1745638672590,4.825,1795.6,1795.5,5.56947925]
[1745638673141,4.825,1795.6,1795.5,5.75809646]
[1745638674542,10.82669306,1795.9,1795.5,5.75809646]
[1745638674834,11.47474563,1795.9,1795.5,5.75809646]
[1745638676337,5.90635257,1795.9,1795.5,5.75809646]
[1745638676490,5.47305257,1795.9,1795.6,5.56913003]
[1745638676685,5.47305257,1795.9,1795.7,0.18849258]
[1745638676907,5.47305257,1795.9,1795.6,5.56913003]
[1745638677144,5.47305257,1795.9,1795.7,0.18849258]
[1745638677295,5.47305257,1795.9,1795.7,5.56884965]
[1745638677496,4.825,1795.9,1795.8,5.7569791]
[1745638677999,4.825,1795.9,1795.8,0.18843027]
[1745638678425,4.825,1795.9,1795.8,5.7569791]
[1745638680837,4.825,1796.2,1796.0,5.56772475]
[1745638681138,4.825,1796.2,1796.1,6.52667678]
[1745638681692,4.825,1796.2,1796.1,0.19205806]
[1745638681897,4.825,1796.2,1796.0,5.56785687]
[1745638682107,4.825,1796.2,1796.1,0.19205806]
[1745638682314,4.825,1796.2,1796.0,5.56789692]
[1745638682602,4.825,1796.2,1796.1,0.19205806]
[1745638682993,4.825,1796.2,1795.9,11.90676461]
[1745638683196,4.825,1796.2,1796.1,0.19205806]
[1745638684433,11.30810876,1796.2,1796.1,0.19205806]
[1745638684619,5.7408,1796.2,1796.1,0.19205806]
[1745638684822,5.7408,1796.2,1795.9,5.56823768]
[1745638685025,5.7408,1796.2,1796.1,0.19205806]
[1745638685224,5.7408,1796.2,1796.0,0.19212035]
[1745638685536,5.7408,1796.2,1796.1,0.19205806]
[1745638685744,5.7408,1796.2,1796.0,5.56791218]
[1745638685900,5.2583,1796.2,1796.1,0.19205806]
[1745638686100,5.2583,1796.2,1795.9,5.56807109]
[1745638686303,5.2583,1796.2,1796.0,0.19212035]
[1745638686932,4.825,1796.2,1796.0,5.76000411]
[1745638687341,4.825,1796.2,1796.0,6.55020411]
[1745638687736,4.825,1796.2,1796.0,0.98232035]
[1745638688852,11.43152568,1796.2,1796.0,0.19212035]
[1745638689144,11.43152568,1796.2,1795.8,6.35869627]
[1745638689145,5.86420272,1796.2,1795.9,5.56812648]
[1745638689319,5.86420272,1796.2,1796.1,0.19205806]
[1745638689520,5.86420272,1796.2,1795.9,5.56812648]
[1745638689832,4.825,1796.2,1796.1,0.19205806]
[1745638690032,4.825,1796.2,1796.0,0.19212035]
[1745638690240,4.825,1796.2,1796.1,6.54987678]
[1745638690545,4.825,1796.2,1796.1,0.19205806]
[1745638691449,10.39230876,1796.2,1796.1,0.19205806]
[1745638691633,4.825,1796.2,1795.8,6.35972403]
[1745638691833,4.825,1796.2,1796.1,0.18776665]
[1745638692018,5.86422319,1796.2,1796.0,5.56791897]
[1745638692224,4.825,1796.2,1796.1,0.18776665]
[1745638692753,10.82560876,1796.2,1796.1,0.18776665]
[1745638692909,10.82560876,1796.2,1795.8,6.3598905]
[1745638693109,10.82560876,1796.2,1795.9,0.18799716]
[1745638694959,5.56767375,1796.1,1795.9,0.18799716]
[1745638695272,10.8257956,1796.2,1795.9,0.18799716]
[1745638695426,1.08257956,1796.1,1795.9,0.18799716]
[1745638695631,10.8257956,1796.2,1795.9,0.18799716]
[1745638696245,5.2583,1796.2,1795.9,0.18799716]
[1745638696658,5.2583,1796.2,1795.9,5.75620543]
[1745638696834,5.2583,1796.2,1795.9,5.75607035]
[1745638698147,4.825,1796.2,1795.9,5.75607035]
[1745638700756,5.90753163,1796.2,1795.9,5.75607035]
[1745638701061,5.90753163,1796.2,1795.9,0.18799716]
[1745638701553,5.56783848,1796.1,1795.9,0.18799716]
[1745638701733,5.56783848,1796.1,1795.7,6.36014618]
[1745638701934,11.47501406,1796.2,1796.0,0.18825268]
[1745638702130,1.14750141,1796.1,1795.8,5.56854804]
[1745638702334,11.47501406,1796.2,1796.1,0.1881904]
[1745638702653,11.47501406,1796.2,1795.8,5.56854804]
[1745638702855,11.47501406,1796.2,1796.1,0.1881904]
[1745638703158,11.98678141,1796.2,1796.1,0.1881904]
[1745638703332,11.98678141,1796.2,1795.8,5.56854804]
[1745638703535,11.98678141,1796.2,1796.1,0.1881904]
[1745638703737,11.98678141,1796.2,1795.8,5.56854804]
[1745638704034,11.47501406,1796.2,1796.1,0.1881904]
[1745638704225,11.47501406,1796.2,1795.8,5.56854804]
[1745638704428,10.39248243,1796.2,1796.1,0.1881904]
[1745638704741,4.825,1796.2,1796.1,0.18893207]
[1745638707057,5.33738516,1796.2,1796.1,0.18893207]
[1745638709562,4.825,1796.2,1796.1,0.18893207]
[1745638709862,4.825,1796.2,1796.1,5.75655079]
[1745638710458,4.825,1796.2,1796.1,6.9656653]
[1745638711161,4.825,1796.2,1796.1,1.39804658]
[1745638711363,4.825,1796.2,1796.1,0.18893207]
[1745638711568,4.825,1796.2,1796.1,5.75655079]
[1745638712670,4.824,1796.5,1796.3,6.36696994]
[1745638712880,4.824,1796.5,1796.3,0.8001]
[1745638713164,10.39040314,1796.5,1796.4,0.18874525]
[1745638713366,11.48069392,1796.5,1796.1,6.36757009]
[1745638713576,11.48069392,1796.5,1796.2,0.18886979]
[1745638713743,0.51243065,1796.4,1796.2,0.18886979]
[1745638713928,0.51243065,1796.4,1796.2,5.75601059]
[1745638714132,0.51243065,1796.4,1796.3,5.56699883]
[1745638714334,0.51243065,1796.4,1796.3,8.31515451]
[1745638714635,4.823,1796.8,1796.6,6.36602129]
[1745638714854,5.99800595,1797.1,1796.7,5.5655631]
[1745638715068,4.823,1797.0,1796.8,5.56530314]
[1745638715458,4.823,1797.0,1796.9,0.18693887]
[1745638715867,4.823,1797.0,1796.8,5.56530314]
[1745638716165,4.823,1797.0,1796.9,0.18693887]
[1745638716334,4.823,1797.0,1796.7,5.5655631]
[1745638716529,4.823,1797.0,1796.8,0.18700109]
[1745638717066,5.91295755,1797.0,1796.8,0.18700109]
[1745638717264,11.47801169,1797.0,1796.8,0.18700109]
[1745638717469,11.47801169,1797.0,1796.6,0.8001]
[1745638717663,11.47801169,1797.0,1796.9,0.18693887]
[1745638717866,17.04311211,1797.0,1796.6,0.8001]
[1745638718059,4.823,1797.0,1796.9,0.18693887]
[1745638718741,4.823,1797.0,1796.8,5.56533385]
[1745638718955,4.823,1797.0,1796.9,0.18693887]
[1745638719166,4.823,1797.0,1796.8,5.56533385]
[1745638719483,4.823,1797.3,1796.9,6.53817883]
[1745638719654,4.823,1797.3,1797.0,5.56465105]
[1745638720175,4.823,1797.3,1797.1,0.1832138]
[1745638721653,4.823,1797.3,1796.9,6.35100529]
[1745638721843,4.823,1797.3,1797.2,0.18251647]
[1745638722466,4.823,1797.3,1796.9,6.35100529]
[1745638722650,4.823,1797.3,1797.2,0.18251647]
[1745638722651,10.3869014,1797.3,1797.2,0.18251647]
[1745638723052,5.56421435,1797.2,1796.9,0.7861]
[1745638723355,10.3869014,1797.3,1796.9,0.7861]
[1745638723356,10.38708046,1797.3,1796.9,6.35123012]
[1745638723562,5.56422535,1797.2,1796.9,0.7861]
[1745638723767,5.99752535,1797.2,1796.8,6.36799353]
[1745638724288,0.4333,1797.2,1796.8,7.56133788]
[1745638724584,4.823,1797.3,1796.9,5.56496785]
[1745638724877,10.38690399,1797.3,1796.9,5.56496785]
[1745638727063,5.56421239,1797.2,1796.8,7.56137559]
[1745638727379,10.38709254,1797.3,1796.8,7.56129453]
[1745638727946,10.38709254,1797.3,1796.9,5.56502265]
[1745638728684,5.56421599,1797.2,1796.8,7.561376]
[1745638730448,5.56421599,1797.2,1796.8,0.8027]
[1745638730879,5.56464887,1797.1,1796.8,0.8027]
[1745638731086,5.56464887,1797.1,1796.6,6.36862314]
[1745638731087,0.4333,1797.1,1796.6,6.36862314]
[1745638731271,5.99803279,1797.1,1796.7,5.56562977]
[1745638731469,5.56528692,1796.9,1796.5,6.31782883]
[1745638731672,0.4333,1796.9,1796.5,6.31774269]
[1745638731987,5.2533,1796.9,1796.5,6.31774269]
[1745638732399,5.2533,1796.9,1796.5,11.88387755]
[1745638732681,5.2533,1796.9,1796.5,6.31773486]
[1745638732881,5.2533,1796.9,1796.6,0.63177349]
[1745638733177,5.2533,1796.9,1796.6,6.37691638]
[1745638733882,5.2533,1796.9,1796.6,0.81095726]
[1745638734181,5.2533,1796.9,1796.6,0.17918377]
[1745638734182,5.99905944,1796.7,1796.6,0.17918377]
[1745638734345,5.56632463,1796.6,1796.1,6.94606221]
[1745638734550,5.56632463,1796.6,1796.2,0.18054429]
[1745638734764,4.82,1796.5,1796.2,0.89320494]
[1745638734965,10.38652253,1796.5,1796.2,0.89320494]
[1745638735279,6.00004694,1796.4,1796.2,0.18054429]
[1745638735649,5.56699883,1796.3,1796.2,0.18054429]
[1745638735983,5.56699883,1796.3,1795.9,0.7516]
[1745638736170,5.56699883,1796.3,1796.0,0.1837392]
[1745638737048,6.0001344,1796.4,1796.0,0.1837392]
[1745638737295,6.0001344,1796.4,1796.0,6.40188712]
[1745638737949,0.4333,1796.4,1796.0,6.40188712]
[1745638738148,6.00001811,1796.4,1796.0,6.40188712]
[1745638738358,10.38654235,1796.5,1796.0,6.40188712]
[1745638738588,10.38654235,1796.5,1796.1,5.56760613]
[1745638738786,10.38654235,1796.5,1796.2,0.16861466]
[1745638739585,10.38654235,1796.5,1796.2,0.7561]
[1745638739765,10.38654235,1796.5,1796.3,0.16855239]
[1745638739968,12.025134,1796.5,1796.3,0.16855239]
[1745638741954,5.56668893,1796.4,1796.3,0.16855239]
[1745638742155,5.99998893,1796.4,1796.3,0.16855239]
[1745638742467,5.56779824,1796.1,1795.8,0.7899]
[1745638742658,4.821,1796.1,1795.8,0.7899]
[1745638742853,4.821,1796.1,1795.9,0.15683628]
[1745638743696,10.38864719,1796.1,1795.9,0.15683628]
[1745638744187,4.821,1796.1,1795.9,0.15683628]
[1745638754313,5.56792873,1796.0,1795.9,0.15683628]
[1745638755128,5.56792873,1796.0,1795.6,1.41684722]
[1745638755275,5.56852828,1795.9,1795.4,6.35946078]
[1745638755472,5.56866859,1795.8,1795.4,6.35946078]
[1745638755710,5.56866859,1795.8,1795.4,7.61511011]
[1745638756818,5.56843756,1795.9,1795.4,7.61511011]
[1745638757413,11.13697349,1795.9,1795.4,7.61511011]
[1745638757621,5.56875991,1795.8,1795.4,7.61511011]
[1745638760387,5.56841509,1795.9,1795.4,7.61511011]
[1745638760589,5.56801848,1796.0,1795.6,0.7597]
[1745638760791,10.38884119,1796.1,1795.6,6.32869922]
[1745638761018,5.56793969,1796.0,1795.6,6.32869922]
[1745638761387,5.56794967,1796.0,1795.6,6.32866468]
[1745638762754,10.38878768,1796.1,1795.7,5.56883298]
[1745638763044,4.821,1796.1,1795.8,5.73050357]
[1745638763218,4.821,1796.1,1795.9,6.33053776]
[1745638763419,4.821,1796.1,1796.0,0.16185122]
[1745638769630,4.821,1796.6,1796.1,0.7898]
[1745638769845,0.51152636,1796.5,1796.2,0.15881745]
[1745638770030,0.51152636,1796.5,1796.3,0.7898]
[1745638770243,0.51152636,1796.5,1796.4,0.15864]
[1745638770444,0.51152636,1796.5,1796.3,6.35668384]
[1745638770657,0.51152636,1796.5,1796.4,0.15864]
[1745638770841,6.09963171,1796.5,1796.4,0.15864]
[1745638771042,6.09963171,1796.5,1796.1,6.35717466]
[1745638771233,5.56637907,1796.5,1796.2,0.15876456]
[1745638772966,10.82060236,1796.6,1796.2,0.15876456]
[1745638773171,10.82060236,1796.6,1796.2,5.72606175]
[1745638774942,5.5664,1796.5,1796.2,0.15876456]
[1745638775167,5.56673248,1796.4,1796.2,0.15876456]
[1745638775534,5.56673248,1796.4,1796.1,0.7898]
[1745638775737,5.56673248,1796.4,1796.3,0.15870228]
[1745638776374,5.56673248,1796.4,1796.1,0.7898]
[1745638776694,5.56673248,1796.4,1796.2,0.15876456]
[1745638776839,5.51673248,1796.4,1796.2,0.15876456]
[1745638777181,5.56699883,1796.3,1796.2,0.15876456]
[1745638777334,5.56681381,1796.4,1796.0,6.38320062]
[1745638777676,5.56681381,1796.4,1796.1,0.15882685]
[1745638778476,11.13376798,1796.4,1796.1,0.15882685]
[1745638778768,11.13375363,1796.4,1796.1,0.15882685]
[1745638780073,5.56701559,1796.3,1796.1,0.15882685]
[1745638780569,4.821,1796.2,1796.1,0.15882685]
[1745638780746,10.38830876,1796.2,1796.1,0.15882685]
[1745638780946,10.38830876,1796.2,1795.8,6.38373624]
[1745638781165,10.38830876,1796.2,1796.1,0.15755773]
[1745638781369,10.38830876,1796.2,1795.9,0.63837362]
[1745638781529,10.38830876,1796.2,1796.0,0.15762003]
[1745638781948,10.37640104,1796.2,1796.0,0.15762003]
[1745638783168,4.80909228,1796.2,1796.0,0.15762003]
[1745638784271,4.80909228,1796.2,1796.0,0.79404296]
[1745638784570,4.80909228,1796.2,1796.0,6.3619358]
[1745638784979,4.80909228,1796.2,1796.0,0.79404296]
[1745638793866,4.80909228,1796.2,1796.0,0.15762003]
[1745638794589,10.80983883,1796.2,1796.0,0.15762003]
[1745638794753,5.56761872,1796.1,1795.8,0.8153]
[1745638796948,10.80990169,1796.2,1795.8,0.8153]
[1745638798607,10.80990169,1796.2,1795.6,5.56900466]
[1745638798608,5.56763219,1796.1,1795.6,5.56900466]
[1745638798757,5.56834872,1795.9,1795.6,1.50294629]
[1745638798957,11.1368801,1795.9,1795.6,1.50294629]
[1745638799158,5.56834872,1795.9,1795.6,0.8072]
[1745638800457,5.56860189,1795.8,1795.5,0.76151101]
[1745638800656,6.00171745,1795.9,1795.5,0.76151101]
[1745638800885,6.00171745,1795.9,1795.5,6.33095774]
[1745638801087,6.00171745,1795.9,1795.6,0.63309577]
[1745638801392,5.56810526,1796.0,1795.6,0.63309577]
[1745638801570,5.56810526,1796.0,1795.6,6.2020887]
[1745638802387,6.00106206,1796.1,1795.7,0.8072]
[1745638802757,5.56794768,1796.0,1795.7,0.8072]
[1745638804816,5.56794768,1796.0,1795.7,1.50813102]
[1745638805679,5.56794768,1796.0,1795.7,0.8072]
[1745638808009,5.56794768,1796.0,1795.6,6.38851448]
[1745638808178,5.56794768,1796.0,1795.7,0.16098021]
[1745638808381,5.56794768,1796.0,1795.6,6.38851448]
[1745638808913,5.56794768,1796.0,1795.7,0.16098021]
[1745638809115,5.56827251,1795.9,1795.6,0.8195]
[1745638809316,5.56810302,1796.0,1795.7,0.16098021]
[1745638809513,5.56810302,1796.0,1795.6,0.8195]
[1745638809809,5.56810302,1796.0,1795.7,0.16098021]
[1745638810211,5.56810302,1796.0,1795.6,6.38866633]
[1745638810412,5.56810302,1796.0,1795.8,0.16091789]
[1745638810612,5.56810302,1796.0,1795.7,0.16098021]
[1745638810815,5.56810302,1796.0,1795.9,0.16085558]
[1745638811017,5.56810302,1796.0,1795.8,0.16091789]
[1745638811217,6.07964477,1796.0,1795.9,0.16085558]
[1745638811420,6.07964477,1796.0,1795.6,6.38866633]
[1745638811713,6.07964477,1796.0,1795.7,0.16098021]
[1745638811916,5.56810302,1796.0,1795.6,7.02753296]
[1745638812115,5.56810302,1796.0,1795.7,0.16098021]
[1745638812302,4.82,1795.9,1795.6,7.02753296]
[1745638812508,4.82,1795.9,1795.7,0.16098021]
[1745638812710,4.82,1795.9,1795.6,7.02753296]
[1745638812909,4.82,1795.9,1795.7,0.16098021]
[1745638813296,4.82,1795.9,1795.6,7.02753296]
[1745638813495,4.82,1795.9,1795.7,0.86373351]
[1745638814107,4.82,1795.9,1795.7,6.43255318]
[1745638816019,4.82,1795.9,1795.7,0.86373351]
[1745638816194,4.82,1795.9,1795.7,0.16098021]
[1745638816524,4.82,1795.9,1795.6,7.02734286]
[1745638816823,4.82,1795.9,1795.7,0.16140337]
[1745638817122,4.82,1795.9,1795.6,7.02734286]
[1745638817424,4.82,1795.9,1795.7,0.16140337]
[1745638817620,4.82,1795.9,1795.5,5.56931326]
[1745638817821,4.82,1795.9,1795.5,12.33309486]
[1745638818121,4.82,1795.9,1795.6,0.1615186]
[1745638818122,10.3882728,1795.9,1795.6,0.1615186]
[1745638819453,4.82,1795.9,1795.7,0.5572]
[1745638819653,5.56880686,1795.8,1795.4,7.00293837]
[1745638819854,10.38842532,1795.9,1795.5,0.16158093]
[1745638820158,10.38842532,1795.9,1795.5,5.73100741]
[1745638821158,4.82,1795.9,1795.6,5.56895632]
[1745638821457,4.82,1795.9,1795.7,5.73055387]
[1745638821858,4.82,1795.9,1795.7,0.16172078]
[1745638822029,4.82,1795.9,1795.6,7.0023315]
[1745638822230,4.82,1795.9,1795.7,6.55586776]
[1745638823254,4.82,1795.9,1795.8,5.56854883]
[1745638823459,4.82,1795.9,1795.8,5.73020729]
[1745638825164,4.82,1795.9,1795.8,6.35715451]
[1745638825454,6.11,1796.1,1796.0,5.56792873]
[1745638825625,4.817,1796.2,1796.0,5.56792873]
[1745638825824,4.817,1796.2,1796.0,5.72859987]
[1745638826030,4.817,1796.2,1796.1,0.8255]
[1745638826236,4.817,1796.2,1796.1,0.98612519]
[1745638828979,4.817,1796.2,1796.1,6.55374391]
[1745638829339,4.817,1796.2,1796.1,0.98612519]
[1745638834789,4.817,1796.2,1796.1,7.20913796]
[1745638835149,4.817,1796.5,1796.2,5.56719934]
[1745638835355,4.817,1796.5,1796.3,0.15843787]
[1745638836180,4.817,1796.5,1796.3,5.72542173]
[1745638836554,4.817,1796.5,1796.3,0.15843787]
[1745638838347,4.817,1796.5,1796.4,0.7985]
[1745638838554,4.817,1796.5,1796.4,6.52356452]
[1745638839075,4.817,1796.5,1796.4,0.95687559]
[1745638840957,4.817,1796.5,1796.4,6.52356452]
[1745638841600,4.817,1796.5,1796.4,0.95687559]
[1745638841902,4.817,1796.5,1796.4,6.52356452]
[1745638842078,4.817,1796.5,1796.4,2.22316934]
[1745638844798,4.817,1796.5,1796.4,1.42466934]
[1745638845779,10.81667907,1796.5,1796.4,0.15837559]
[1745638846103,5.56682317,1796.4,1796.0,5.56792056]
[1745638846304,10.81686327,1796.5,1796.1,0.1552842]
[1745638846507,10.81686825,1796.5,1796.1,0.1552842]
[1745638846682,10.81686825,1796.5,1796.1,6.85194587]
[1745638847303,5.2503,1796.5,1796.2,5.5672861]
[1745638847507,5.2503,1796.5,1796.3,0.15579406]
[1745638848402,4.817,1796.5,1796.3,0.15579406]
[1745638849693,4.817,1796.5,1796.3,5.72277578]
[1745638849892,4.817,1796.5,1796.3,6.9349733]
[1745638851710,4.817,1796.5,1796.3,1.36799158]
[1745638852239,4.817,1796.5,1796.3,6.93476307]
[1745638853341,4.817,1796.5,1796.4,6.39858893]
[1745638853524,4.817,1796.5,1796.4,6.55410922]
[1745638853725,4.817,1796.5,1796.4,7.88741704]
[1745638854211,4.817,1796.5,1796.4,6.55410922]
[1745638854536,4.817,1796.5,1796.4,0.15552029]
[1745638854741,4.817,1796.5,1796.2,6.35734879]
[1745638854902,4.817,1796.5,1796.3,0.15531823]
[1745638855923,4.817,1796.5,1796.3,5.72228391]
[1745638856131,4.817,1796.5,1796.4,0.57222839]
[1745638856297,4.817,1796.5,1796.4,0.72764294]
[1745638857929,4.817,1796.5,1796.4,0.15541455]
[1745638858127,4.817,1796.5,1796.2,6.35732098]
[1745638858331,4.817,1796.5,1796.3,0.15547683]
[1745638859692,4.817,1796.5,1796.3,5.72246704]
[1745638861034,4.817,1796.5,1796.3,5.72223801]
[1745638861234,4.817,1796.5,1796.4,0.5722238]
[1745638861631,5.56592819,1796.7,1796.4,0.72763835]
[1745638864214,0.5117392,1796.6,1796.4,0.72763835]
[1745638865204,0.5117392,1796.6,1796.4,6.2943184]
[1745638865403,10.81193412,1796.8,1796.4,6.2943184]
[1745638865603,10.81193412,1796.8,1796.5,0.62943184]
[1745638866035,10.81193412,1796.8,1796.6,0.15529002]
[1745638866636,0.51194761,1796.7,1796.6,0.15529002]
[1745638868738,0.51194761,1796.7,1796.6,5.72135926]
[1745638869340,0.51194761,1796.7,1796.6,7.11200648]
[1745638869546,0.51194761,1797.0,1796.7,5.5656896]
[1745638869721,0.51194761,1797.0,1796.8,0.15310393]
[1745638870249,0.51194761,1797.0,1796.8,5.71845151]
[1745638870546,4.813,1797.1,1796.9,5.56513996]
[1745638870750,4.813,1797.1,1797.0,0.15297945]
[1745638870918,4.812,1797.3,1796.8,1.39064722]
[1745638871243,4.812,1797.3,1796.9,5.71635148]
[1745638871451,5.56429974,1797.2,1797.0,0.57163515]
[1745638871647,10.37611572,1797.3,1796.9,0.15145627]
[1745638871849,10.37611572,1797.3,1797.1,0.15043363]
[1745638872042,10.37611572,1797.3,1797.0,0.15049586]
[1745638872219,5.56425833,1797.2,1796.8,6.32893502]
[1745638872547,10.37601685,1797.3,1796.9,5.56513184]
[1745638872770,10.37601685,1797.3,1797.0,0.55651318]
[1745638872941,10.37601685,1797.3,1797.0,6.1212952]
[1745638872942,4.812,1797.3,1797.0,6.1212952]
[1745638873146,4.812,1797.3,1797.0,6.9183952]
[1745638873451,4.812,1797.3,1797.1,5.5644641]
[1745638874432,4.812,1797.3,1797.2,6.36131099]
[1745638874630,4.812,1797.6,1797.2,7.5538885]
[1745638874865,10.37500695,1797.6,1797.2,7.5538885]
[1745638875529,5.99611808,1797.7,1797.3,5.56387229]
[1745638875855,10.37500514,1797.6,1797.2,7.55371667]
[1745638876042,10.37500514,1797.6,1797.3,0.75537167]
[1745638876655,5.56336497,1797.5,1797.2,1.98967751]
[1745638877860,10.37508179,1797.6,1797.2,7.55386379]
[1745638880622,5.56331265,1797.5,1797.2,1.98967751]
[1745638881240,10.37515363,1797.6,1797.2,1.98967751]
[1745638881859,10.37515363,1797.6,1797.2,7.55385341]
[1745638882063,10.37515363,1797.6,1797.3,0.75538534]
[1745638882864,4.812,1797.6,1797.3,0.75538534]
[1745638883033,4.812,1797.6,1797.4,0.1451223]
[1745638883367,10.37500456,1797.6,1797.3,0.75538534]
[1745638883529,10.37500456,1797.6,1797.5,0.1450601]
[1745638883730,10.37500456,1797.6,1797.3,0.75538534]
[1745638884063,10.37500456,1797.6,1797.4,0.1451223]
[1745638884269,5.56328233,1797.5,1797.4,0.1451223]
[1745638884427,5.56328233,1797.5,1797.2,1.98967751]
[1745638884633,5.56328233,1797.5,1797.4,0.1451223]
[1745638884833,5.56328233,1797.5,1797.3,0.1451845]
[1745638885046,5.56328233,1797.5,1797.4,0.1451223]
[1745638885428,5.56328233,1797.5,1797.2,1.98967751]
[1745638885632,5.56328233,1797.5,1797.4,0.1451223]
[1745638886168,5.56328233,1797.5,1797.2,0.7971]
[1745638886333,5.56328233,1797.5,1797.4,0.14475263]
[1745638886529,5.56328233,1797.5,1797.2,1.43324922]
[1745638886730,5.56328233,1797.5,1797.3,0.14481484]
[1745638888175,5.56328233,1797.5,1797.3,0.13290711]
[1745638888478,10.37514105,1797.6,1797.3,0.13290711]
[1745638889875,15.93838474,1797.6,1797.3,0.13290711]
[1745638890372,10.37514105,1797.6,1797.3,0.13290711]
[1745638890584,3.4333,1797.5,1797.3,0.13290711]
[1745638890746,5.5639014,1797.3,1796.8,0.789]
[1745638890946,5.2413,1797.2,1796.8,0.789]
[1745638891146,5.56471897,1797.1,1796.9,0.13114627]
[1745638891346,10.8056709,1797.2,1796.8,0.789]
[1745638891657,5.56454125,1797.1,1796.9,0.13114627]
[1745638892054,5.56454125,1797.1,1796.8,1.42445304]
[1745638892256,5.56454125,1797.1,1797.0,0.13108403]
[1745638892452,5.56454125,1797.1,1796.9,0.13114627]
[1745638892656,5.56454125,1797.1,1797.0,0.13108403]
[1745638892967,10.8056709,1797.2,1796.8,6.35441403]
[1745638893170,10.3723709,1797.2,1796.9,0.13114627]
[1745638893371,10.3723709,1797.2,1796.8,6.35441403]
[1745638893574,10.3723709,1797.2,1796.9,0.13114627]
[1745638893750,10.3723709,1797.2,1796.8,6.35441403]
[1745638893946,10.3723709,1797.2,1796.9,0.13114627]
[1745638894145,10.3723709,1797.2,1796.8,6.35441403]
[1745638894345,4.808,1797.2,1796.9,0.13114627]
[1745638894583,4.808,1797.2,1796.8,6.98985543]
[1745638894584,10.918,1797.5,1797.1,5.56437849]
[1745638894877,4.808,1797.5,1797.3,0.8006]
[1745638895248,4.808,1797.5,1797.4,0.13263101]
[1745638895584,4.808,1797.5,1797.3,0.8006]
[1745638895784,4.808,1797.5,1797.4,0.13263101]
[1745638895987,4.808,1797.5,1797.3,0.8006]